bitfinex/quotes_SOLUSD_20240814
["timestamp","ask_amount","ask_price","bid_price","bid_amount"]
[1723640659122,6.75249,150.9,150.77,22.8469]
[1723640659330,6.75409,150.87,150.77,6.5102]
[1723640659536,0.12549,150.85,150.77,6.5102]
[1723640660136,6.75459,150.85,150.77,6.5102]
[1723640660444,50.87,150.93,150.78,50.87]
[1723640660646,57.4956,150.93,150.78,50.87]
[1723640660944,6.6265,150.91,150.78,50.87]
[1723640661114,64.36846069,150.93,150.78,50.87]
[1723640661321,6.87286069,150.93,150.82,0.12549]
[1723640661543,6.87286069,150.93,150.82,45.50196]
[1723640661847,7.4762359,150.96,150.84,0.12549]
[1723640662152,58.59302313,150.96,150.84,45.12549]
[1723640662451,6.6276,150.89,150.77,6.5102]
[1723640662619,50.87,150.9,150.77,6.5102]
[1723640662815,0.25098,150.89,150.77,6.5102]
[1723640663020,6.87868,150.89,150.77,6.5102]
[1723640663731,6.6278,150.88,150.77,6.5102]
[1723640663927,6.6278,150.88,150.78,45.50196]
[1723640664134,6.87838,150.89,150.78,45.50196]
[1723640664332,6.87838,150.89,150.79,20.0]
[1723640664535,6.87838,150.89,150.8,45.0]
[1723640664849,58.59302313,150.96,150.82,0.12549]
[1723640665030,7.72302313,150.96,150.85,0.12549]
[1723640665236,7.4758359,150.96,150.85,21.82722899]
[1723640665434,0.8516359,150.96,150.85,66.82722899]
[1723640665633,7.4759359,150.96,150.85,66.82722899]
[1723640665939,7.4759359,150.96,150.85,65.37647]
[1723640665940,0.8516359,150.96,150.85,65.37647]
[1723640666144,0.8516359,150.96,150.81,50.87]
[1723640666145,51.7216359,150.96,150.81,50.87]
[1723640666323,50.87,150.93,150.79,0.12549]
[1723640666519,6.6268,150.91,150.78,70.87]
[1723640667435,6.6252,150.94,150.81,50.87]
[1723640667633,6.6252,150.94,150.82,0.25098]
[1723640667839,6.6257,150.93,150.83,0.12549]
[1723640668051,51.7216359,150.96,150.83,0.12549]
[1723640668052,6.6252,150.94,150.83,0.12549]
[1723640668343,50.87,150.93,150.82,65.12549]
[1723640668548,6.6265,150.91,150.83,45.0]
[1723640668747,6.6259,150.93,150.83,45.0]
[1723640668939,0.12549,150.93,150.83,45.0]
[1723640669144,0.25098,150.93,150.83,45.0]
[1723640669346,6.6268,150.91,150.83,45.0]
[1723640669759,6.6278,150.88,150.75,50.87]
[1723640670065,6.6283,150.87,150.75,50.87]
[1723640670429,6.6254,150.94,150.81,50.87]
[1723640670675,6.6254,150.94,150.82,1.3255002]
[1723640670854,0.8516359,150.96,150.84,50.87]
[1723640671156,0.8516359,150.96,150.85,20.0]
[1723640671454,0.8516359,150.96,150.86,45.50196]
[1723640671662,0.8516359,150.96,150.88,0.12549]
[1723640671954,0.8516359,150.96,150.88,46.82696009]
[1723640672161,0.8516359,150.96,150.89,20.0]
[1723640672457,0.8516359,150.96,150.9,0.12549]
[1723640672628,0.8516359,150.96,150.9,45.50196]
[1723640672825,0.8516359,150.96,150.89,26.1993]
[1723640673255,0.8516359,150.96,150.9,45.37647]
[1723640673456,0.8516359,150.96,150.91,0.12549]
[1723640673637,0.8516359,150.96,150.91,20.12549]
[1723640673839,0.8516359,150.96,150.92,45.0]
[1723640674042,0.8516359,150.96,150.91,20.0]
[1723640674248,0.8516359,150.96,150.89,6.1993]
[1723640674447,0.8516359,150.96,150.9,65.0]
[1723640674962,0.8516359,150.96,150.9,45.0]
[1723640675134,7.4758359,150.96,150.89,6.1993]
[1723640675336,0.8516359,150.96,150.83,6.2036]
[1723640675552,7.4760359,150.96,150.84,20.0]
[1723640675734,0.8516359,150.96,150.84,20.0]
[1723640675936,0.8516359,150.96,150.85,1.3252156]
[1723640676154,0.8516359,150.96,150.86,50.87]
[1723640676339,0.8516359,150.96,150.89,50.87]
[1723640676544,0.5195359,150.96,150.9,21.3246267]
[1723640676761,0.5195359,150.96,150.91,0.25098]
[1723640677067,0.5195359,150.96,150.93,0.12549]
[1723640677374,0.5195359,150.96,150.93,0.25098]
[1723640677664,0.5195359,150.96,150.94,0.12549]
[1723640677837,0.5195359,150.96,150.86,50.87]
[1723640678043,0.5195359,150.96,150.82,45.59635443]
[1723640678044,51.3895359,150.96,150.82,15.385]
[1723640678254,51.3895359,150.96,150.78,50.87]
[1723640678255,0.25098,150.95,150.78,50.87]
[1723640678747,6.626,150.92,150.78,50.87]
[1723640678947,0.25098,150.95,150.78,50.87]
[1723640679160,6.87608,150.94,150.78,50.87]
[1723640679460,0.12549,150.94,150.78,50.87]
[1723640679670,6.6264,150.91,150.78,50.87]
[1723640679844,6.6264,150.91,150.78,57.2284]
[1723640680039,57.62149,150.93,150.78,57.2284]
[1723640680246,6.625,150.95,150.81,50.87]
[1723640680441,51.7660059,150.96,150.82,21.32537723]
[1723640680676,0.5195359,150.96,150.84,50.87]
[1723640680840,0.5195359,150.96,150.85,21.32506254]
[1723640681041,0.5195359,150.96,150.87,0.12549]
[1723640681242,0.5195359,150.96,150.87,1.57609264]
[1723640681466,0.5195359,150.96,150.88,0.12549]
[1723640681672,0.5195359,150.96,150.88,0.25098]
[1723640681966,0.5195359,150.96,150.89,0.25098]
[1723640682152,0.5195359,150.96,150.89,20.25098]
[1723640682352,0.5195359,150.96,150.9,45.0]
[1723640682841,0.5195359,150.96,150.84,50.87]
[1723640683039,0.5195359,150.96,150.85,65.50196]
[1723640683349,0.5195359,150.96,150.91,0.12549]
[1723640683560,0.5195359,150.96,150.91,66.70109118]
[1723640683785,0.5195359,150.96,150.92,0.12549]
[1723640684868,0.5195359,150.96,150.87,50.87]
[1723640685076,0.5195359,150.96,150.84,6.6334]
[1723640685243,6.6254,150.94,150.84,6.6334]
[1723640685444,0.5195359,150.96,150.84,6.6334]
[1723640685880,0.5195359,150.96,150.85,1.3252264]
[1723640686171,0.5195359,150.96,150.86,1.3252286]
[1723640686379,0.5195359,150.96,150.87,0.12549]
[1723640686674,0.5195359,150.96,150.86,20.12549]
[1723640686840,0.5195359,150.96,150.87,45.0]
[1723640687046,0.5195359,150.96,150.88,21.45056056]
[1723640687353,0.5195359,150.96,150.89,45.12549]
[1723640687671,0.5195359,150.96,150.9,20.0]
[1723640688362,0.5195359,150.96,150.89,45.0]
[1723640688675,7.1437359,150.96,150.84,57.5034]
[1723640688852,7.1437359,150.96,150.84,6.6334]
[1723640689047,0.5195359,150.96,150.84,6.6334]
[1723640689269,0.5195359,150.96,150.86,50.87]
[1723640689473,0.5195359,150.96,150.89,50.87]
[1723640689684,0.5195359,150.96,150.9,1.32466935]
[1723640690569,0.5195359,150.96,150.91,0.50196]
[1723640690774,0.5195359,150.96,150.91,0.25098]
[1723640691650,0.5195359,150.96,150.9,20.0]
[1723640691962,0.5195359,150.96,150.86,50.87]
[1723640693052,0.5195359,150.96,150.87,45.0]
[1723640693363,0.5195359,150.96,150.88,20.0]
[1723640693557,0.5195359,150.96,150.89,45.0]
[1723640693759,0.5195359,150.96,150.88,20.0]
[1723640694060,0.5195359,150.96,150.81,50.87]
[1723640694268,6.6256,150.93,150.79,6.515]
[1723640694977,6.6265,150.91,150.79,6.515]
[1723640695142,6.6277,150.88,150.76,6.87203217]
[1723640695547,6.6278,150.88,150.76,6.87203217]
[1723640696552,0.12549,150.87,150.76,6.87203217]
[1723640696872,6.6305,150.82,150.76,6.87203217]
[1723640697190,6.6321,150.78,150.76,6.87203217]
[1723640697476,6.6321,150.78,150.66,50.87]
[1723640697680,0.12549,150.78,150.64,26.557988]
[1723640697854,6.6335,150.75,150.63,57.3648]
[1723640698254,6.6343,150.74,150.63,6.4948]
[1723640698456,6.6335,150.75,150.63,6.4948]
[1723640698870,57.5031,150.76,150.63,6.4948]
[1723640699271,57.5031,150.76,150.64,0.12549]
[1723640700075,6.87479733,150.76,150.67,0.12549]
[1723640700278,15.3371,150.81,150.7,0.12549]
[1723640700652,6.6321,150.79,150.7,0.12549]
[1723640701082,6.633,150.76,150.63,57.3648]
[1723640701288,50.87,150.76,150.63,6.4948]
[1723640701580,6.6344,150.73,150.6,50.87]
[1723640701775,6.6349,150.72,150.6,50.87]
[1723640701950,6.6349,150.72,150.57,6.2934]
[1723640702147,50.87,150.7,150.57,6.2934]
[1723640702388,6.6375,150.66,150.53,50.87]
[1723640702851,67.1955,150.7,150.56,50.87]
[1723640703046,0.50196,150.69,150.54,6.87747043]
[1723640703252,6.6379,150.65,150.53,50.87]
[1723640703480,6.6375,150.66,150.53,50.87]
[1723640703684,6.637,150.67,150.53,50.87]
[1723640703894,0.12549,150.67,150.53,50.87]
[1723640704051,6.6383,150.64,150.52,6.3831]
[1723640704251,6.6387,150.64,150.52,6.3831]
[1723640704456,0.12549,150.64,150.51,6.87958311]
[1723640704663,6.76559,150.6,150.47,57.2531]
[1723640704860,6.89108,150.6,150.47,57.2531]
[1723640705293,6.6405,150.59,150.47,57.2531]
[1723640705461,6.6414,150.57,150.44,51.7216359]
[1723640705662,0.12549,150.58,150.44,0.8516359]
[1723640705876,6.6418,150.56,150.45,6.88402941]
[1723640706164,6.6424,150.55,150.45,6.88402941]
[1723640706487,15.65679,150.58,150.46,1.32885833]
[1723640706673,0.37647,150.57,150.45,6.88402941]
[1723640706991,6.6422,150.56,150.45,6.88402941]
[1723640707202,6.6432,150.53,150.45,6.88402941]
[1723640707575,0.12549,150.54,150.45,6.88402941]
[1723640707769,7.01957,150.54,150.44,0.8516359]
[1723640708293,6.644,150.52,150.44,0.8516359]
[1723640708494,6.6441,150.51,150.44,0.8516359]
[1723640708688,6.76909,150.53,150.44,0.8516359]
[1723640708987,0.25098,150.54,150.44,0.8516359]
[1723640709193,0.12549,150.54,150.44,0.8516359]
[1723640709367,0.25098,150.54,150.44,0.8516359]
[1723640709697,6.6448,150.5,150.44,0.8516359]
[1723640709993,51.12098,150.53,150.44,0.8516359]
[1723640709994,50.99549,150.53,150.44,0.8516359]
[1723640710168,15.5313,150.58,150.45,1.32892527]
[1723640710363,6.6423,150.55,150.44,0.8516359]
[1723640710679,6.89368,150.54,150.44,20.8516359]
[1723640710889,0.12549,150.55,150.44,20.8516359]
[1723640711183,21.8818,150.64,150.5,0.25098]
[1723640711362,6.6392,150.62,150.51,0.25098]
[1723640711565,50.87,150.63,150.51,20.0]
[1723640711789,50.87,150.6,150.46,0.12549]
[1723640711997,50.87,150.57,150.46,20.0]
[1723640712295,6.6441,150.51,150.44,20.8516359]
[1723640712593,6.645,150.49,150.44,0.8516359]
[1723640712809,6.6449,150.49,150.44,0.8516359]
[1723640713092,6.37629,150.5,150.44,0.8516359]
[1723640713093,13.14628,150.5,150.44,0.8516359]
[1723640713399,0.12549,150.5,150.44,0.8516359]
[1723640713867,0.25098,150.5,150.44,0.8516359]
[1723640714076,50.87,150.51,150.44,0.8516359]
[1723640714694,0.50196,150.5,150.44,0.8516359]
[1723640714890,6.6466,150.46,150.44,0.8516359]
[1723640715095,6.6467,150.45,150.44,0.8516359]
[1723640715278,6.89768,150.45,150.44,0.8516359]
[1723640715598,6.89768,150.45,150.29,0.8516359]
[1723640715599,0.12549,150.44,150.29,0.8516359]
[1723640715788,6.6485,150.41,150.29,0.8516359]
[1723640715969,6.6476,150.43,150.29,0.8516359]
[1723640716173,51.24647,150.44,150.29,0.8516359]
[1723640716174,0.12549,150.44,150.31,50.87]
[1723640716377,57.3748,150.5,150.34,50.87]
[1723640716604,0.12549,150.49,150.34,57.3988]
[1723640716892,6.6459,150.47,150.34,6.5288]
[1723640717095,6.6454,150.48,150.34,6.5288]
[1723640717299,0.12549,150.49,150.36,0.12549]
[1723640717488,0.12549,150.49,150.37,0.12549]
[1723640717684,6.6454,150.48,150.37,20.25098]
[1723640717871,50.87,150.47,150.37,20.0]
[1723640718071,50.87,150.47,150.38,1.32980679]
[1723640718297,0.25098,150.49,150.37,20.12549]
[1723640718494,0.12549,150.48,150.38,45.0]
[1723640718691,0.25098,150.48,150.37,20.0]
[1723640718900,6.6484,150.42,150.29,58.2267359]
[1723640719085,6.6481,150.42,150.29,7.3567359]
[1723640719288,0.12549,150.43,150.29,7.3567359]
[1723640719289,6.77309,150.43,150.29,7.3567359]
[1723640719597,0.12549,150.42,150.29,7.3567359]
[1723640720194,0.12549,150.41,150.29,7.3567359]
[1723640720383,6.649,150.4,150.29,7.3567359]
[1723640720580,50.99549,150.38,150.29,0.8516359]
[1723640720999,0.12549,150.42,150.29,0.8516359]
[1723640721202,0.12549,150.42,150.3,1.33007052]
[1723640721495,0.12549,150.42,150.29,0.8516359]
[1723640721703,6.77369,150.42,150.29,0.8516359]
[1723640722005,13.67376666,150.42,150.3,0.12549]
[1723640722182,13.67376666,150.42,150.3,0.37647]
[1723640722498,7.02556666,150.42,150.32,0.12549]
[1723640722701,6.90007666,150.42,150.32,1.70651325]
[1723640723008,15.3938,150.45,150.35,0.12549]
[1723640723245,6.89504507,150.46,150.37,50.87]
[1723640723503,6.6463,150.46,150.38,65.0]
[1723640723694,6.89431496,150.48,150.38,20.0]
[1723640723882,6.89431496,150.48,150.35,45.12549]
[1723640723883,6.6471,150.45,150.35,45.12549]
[1723640724083,50.87,150.47,150.37,0.12549]
[1723640724298,50.87,150.47,150.37,45.12549]
[1723640724514,6.6463,150.46,150.37,45.0]
[1723640724684,50.87,150.44,150.32,6.3418]
[1723640724988,6.6476,150.43,150.32,6.3418]
[1723640725986,0.12549,150.43,150.32,6.3418]
[1723640726286,50.87,150.44,150.34,0.12549]
[1723640726594,6.6472,150.44,150.34,0.12549]
[1723640726798,6.6477,150.43,150.33,20.0]
[1723640726998,6.6477,150.43,150.34,45.0]
[1723640727205,6.6476,150.43,150.34,45.0]
[1723640727389,50.87,150.47,150.34,45.0]
[1723640727586,6.647,150.45,150.35,0.12549]
[1723640727808,6.6473,150.44,150.35,20.0]
[1723640727998,0.12549,150.45,150.34,45.0]
[1723640728196,0.25098,150.45,150.33,45.0]
[1723640728397,0.12549,150.44,150.33,45.0]
[1723640728621,0.25098,150.44,150.33,45.0]
[1723640728829,6.77339,150.43,150.33,45.0]
[1723640729118,0.12549,150.43,150.33,45.0]
[1723640729317,6.6485,150.41,150.33,45.0]
[1723640729527,6.6481,150.42,150.33,45.0]
[1723640729699,50.87,150.47,150.34,0.25098]
[1723640729904,0.12549,150.46,150.34,0.37647]
[1723640730213,0.12549,150.46,150.34,20.37647]
[1723640730214,6.6472,150.44,150.34,20.37647]
[1723640730397,6.6472,150.44,150.35,45.0]
[1723640730596,6.89431496,150.48,150.37,0.12549]
[1723640730795,6.6459,150.47,150.37,45.25098]
[1723640731003,6.6459,150.47,150.38,20.0]
[1723640731209,13.53981496,150.48,150.39,45.0]
[1723640731590,16.2708,150.51,150.4,1.32956582]
[1723640731797,6.6432,150.53,150.41,51.12098]
[1723640731999,13.53890477,150.53,150.42,65.12549]
[1723640732219,6.6436,150.52,150.42,65.0]
[1723640732417,6.6457,150.48,150.38,0.12549]
[1723640732636,6.6456,150.48,150.36,20.0]
[1723640732920,50.87,150.51,150.37,0.12549]
[1723640733121,50.87,150.51,150.36,20.0]
[1723640733421,16.6098,150.52,150.36,20.0]
[1723640733422,50.87,150.48,150.36,20.0]
[1723640733620,45.25098,150.47,150.33,20.0]
[1723640733800,6.6475,150.44,150.32,57.2118]
[1723640733997,6.77229,150.45,150.33,0.12549]
[1723640734195,0.37647,150.44,150.32,6.3418]
[1723640734440,0.12549,150.41,150.29,0.8516359]
[1723640734619,57.5194,150.39,150.29,0.8516359]
[1723640735222,0.12549,150.38,150.29,0.8516359]
[1723640735436,0.37647,150.38,150.29,0.8516359]
[1723640736113,0.12549,150.37,150.29,0.8516359]
[1723640736513,0.12549,150.36,150.29,0.8516359]
[1723640736732,0.12549,150.37,150.29,0.8516359]
[1723640737523,0.37647,150.38,150.29,0.8516359]
[1723640737928,0.12549,150.37,150.29,0.8516359]
[1723640738432,6.6516,150.34,150.29,0.8516359]
[1723640738611,6.6516,150.34,150.16,57.770971]
[1723640738612,0.12549,150.28,150.16,6.900971]
[1723640738805,6.90518,150.28,150.21,6.89836753]
[1723640739010,0.12549,150.26,150.16,6.900971]
[1723640739213,20.0,150.31,150.16,6.900971]
[1723640739214,57.5198,150.38,150.21,50.87]
[1723640739414,6.6503,150.37,150.24,50.87]
[1723640739710,6.6507,150.36,150.25,1.33074309]
[1723640739906,6.6503,150.37,150.24,50.87]
[1723640740108,6.6507,150.36,150.24,50.87]
[1723640740330,6.6524,150.32,150.21,6.8982276]
[1723640740625,0.12549,150.31,150.21,6.8982276]
[1723640740830,0.25098,150.31,150.21,6.8982276]
[1723640741207,0.12549,150.3,150.21,6.8982276]
[1723640742243,7.15001261,150.3,150.21,6.8982276]
[1723640742401,0.12549,150.28,150.15,6.2312]
[1723640742729,7.02452261,150.3,150.2,50.87]
[1723640742730,6.89903261,150.3,150.2,50.87]
[1723640742904,50.87,150.38,150.23,50.87]
[1723640743104,6.6506,150.37,150.23,50.87]
[1723640743305,50.87,150.38,150.23,50.87]
[1723640743524,50.87,150.38,150.2,50.87]
[1723640743728,50.87,150.38,150.21,20.12549]
[1723640743910,50.87,150.38,150.22,0.12549]
[1723640744118,70.87,150.38,150.22,0.12549]
[1723640744434,6.6521,150.33,150.21,65.25098]
[1723640744634,50.87,150.38,150.22,52.32648196]
[1723640744820,15.6512,150.39,150.26,6.58469]
[1723640745015,6.6479,150.43,150.29,0.12549]
[1723640745211,16.115,150.45,150.32,0.12549]
[1723640745401,16.115,150.45,150.32,65.0]
[1723640746009,6.648,150.43,150.3,0.12549]
[1723640746211,6.648,150.43,150.3,1.83212284]
[1723640746408,6.89894029,150.44,150.3,1.83212284]
[1723640746607,6.89894029,150.44,150.34,50.87]
[1723640746828,6.6464,150.46,150.35,45.0]
[1723640747029,13.54095783,150.46,150.35,45.0]
[1723640747241,13.54095783,150.46,150.36,1.32988147]
[1723640747415,6.89455783,150.46,150.35,45.0]
[1723640747617,6.6498,150.39,150.24,22.23457549]
[1723640747928,50.87,150.45,150.3,96.24647]
[1723640748252,6.89455783,150.46,150.34,0.12549]
[1723640748409,6.89455783,150.46,150.34,65.50196]
[1723640748609,13.54085783,150.46,150.34,65.50196]
[1723640748805,6.89455783,150.46,150.34,65.50196]
[1723640749219,13.54105783,150.46,150.34,20.12549]
[1723640749835,6.6449,150.5,150.37,0.12549]
[1723640750021,73.9466,150.54,150.39,50.87]
[1723640750216,6.6437,150.52,150.4,20.12549]
[1723640750445,50.87,150.54,150.41,1.32929591]
[1723640750446,6.89383398,150.53,150.41,1.32929591]
[1723640750647,6.89383398,150.53,150.4,20.0]
[1723640750847,6.89383398,150.53,150.41,45.12549]
[1723640751155,67.0547,150.57,150.42,71.24647]
[1723640751321,6.6413,150.58,150.46,0.12549]
[1723640751525,6.89054051,150.56,150.47,6.5053]
[1723640751827,6.64,150.61,150.48,65.12549]
[1723640752026,26.626241,150.6,150.49,0.25098]
[1723640752249,6.4893,150.7,150.54,50.87]
[1723640752424,15.6383,150.73,150.57,50.87]
[1723640752425,57.5051,150.72,150.57,50.87]
[1723640752633,18.85423463,150.71,150.58,21.82962011]
[1723640752839,6.88597895,150.71,150.59,45.0]
[1723640753350,6.88597895,150.71,150.6,20.25098]
[1723640753527,6.88597895,150.71,150.61,45.0]
[1723640753923,6.88597895,150.71,150.62,0.50196]
[1723640754138,13.52117895,150.71,150.61,45.0]
[1723640754626,6.6363,150.69,150.61,45.0]
[1723640754832,6.6357,150.7,150.61,45.0]
[1723640755036,50.87,150.69,150.54,50.87]
[1723640755236,6.6369,150.68,150.57,65.0]
[1723640755965,0.12549,150.67,150.57,65.0]
[1723640756152,7.14026,150.65,150.51,67.4034]
[1723640756452,51.7216359,150.66,150.51,67.4034]
[1723640756764,0.50196,150.65,150.51,67.4034]
[1723640756940,57.5088,150.63,150.51,22.5994]
[1723640757258,6.6392,150.62,150.51,22.5994]
[1723640757448,57.5088,150.63,150.51,22.5994]
[1723640758054,0.12549,150.62,150.51,22.5994]
[1723640758257,0.25098,150.62,150.51,22.5994]
[1723640758753,51.7216359,150.66,150.52,21.32832594]
[1723640759050,0.8516359,150.66,150.57,50.87]
[1723640759259,0.8516359,150.66,150.58,20.0]
[1723640759455,0.8516359,150.66,150.59,45.25098]
[1723640759661,0.8516359,150.66,150.61,0.12549]
[1723640759827,0.8516359,150.66,150.61,0.25098]
[1723640760032,0.8516359,150.66,150.63,0.12549]
[1723640760251,0.8516359,150.66,150.63,52.4482198]
[1723640760453,0.8516359,150.66,150.65,0.12549]
[1723640760662,0.8516359,150.66,150.65,0.25098]
[1723640760830,0.8516359,150.66,150.65,1.82908079]
[1723640761025,0.8516359,150.66,150.65,0.50196]
[1723640761670,0.8516359,150.66,150.64,65.0]
[1723640761956,0.8516359,150.66,150.65,0.12549]
[1723640762151,0.8516359,150.66,150.64,65.0]
[1723640762455,0.8516359,150.66,150.52,20.0]
[1723640762663,0.8516359,150.66,150.57,6.5654]
[1723640764247,0.8516359,150.66,150.49,1.32781779]
[1723640764248,16.09449,150.65,150.49,1.32781779]
[1723640764427,0.12549,150.62,150.47,6.1353]
[1723640764635,50.87,150.6,150.47,6.1353]
[1723640764838,6.6408,150.59,150.47,6.1353]
[1723640765169,50.87,150.57,150.47,6.1353]
[1723640765333,6.6428,150.54,150.41,6.1721]
[1723640765537,50.87,150.54,150.41,6.1721]
[1723640766049,6.6432,150.53,150.41,6.1721]
[1723640766233,50.87,150.54,150.41,6.1721]
[1723640767260,57.5129,150.54,150.41,6.1721]
[1723640767463,57.5142,150.51,150.38,15.261]
[1723640767753,57.5142,150.51,150.36,56.886]
[1723640767754,0.50196,150.5,150.36,56.886]
[1723640768067,0.50196,150.5,150.36,6.016]
[1723640768366,0.12549,150.47,150.36,6.016]
[1723640768554,6.6466,150.46,150.31,6.1076]
[1723640768869,0.12549,150.43,150.31,6.1076]
[1723640769034,50.99549,150.45,150.31,6.1076]
[1723640769239,6.6476,150.43,150.31,6.1076]
[1723640769442,50.87,150.42,150.31,6.1076]
[1723640769850,0.12549,150.44,150.31,6.1076]
[1723640770066,50.87,150.45,150.31,6.1076]
[1723640770245,57.5167,150.45,150.31,6.1076]
[1723640770450,50.99549,150.42,150.31,6.1076]
[1723640770661,0.25098,150.41,150.27,50.87]
[1723640770840,0.12549,150.41,150.27,50.87]
[1723640771038,51.12098,150.42,150.27,50.87]
[1723640771532,50.87,150.39,150.25,6.0668]
[1723640771734,0.37647,150.38,150.25,6.0668]
[1723640771956,6.77619,150.36,150.25,6.0668]
[1723640772160,50.87,150.39,150.25,6.0668]
[1723640772372,6.89682043,150.41,150.27,50.87]
[1723640773161,6.6494,150.39,150.25,6.0668]
[1723640773339,50.87,150.36,150.25,6.0668]
[1723640773543,6.90078,150.38,150.25,6.0668]
[1723640773736,50.87,150.39,150.25,6.0668]
[1723640774237,0.50196,150.38,150.25,6.0668]
[1723640774450,50.87,150.39,150.24,50.87]
[1723640774757,0.12549,150.4,150.25,20.0]
[1723640775075,50.87,150.36,150.21,66.0219]
[1723640775233,0.25098,150.35,150.21,66.0219]
[1723640775944,0.25098,150.35,150.19,6.1713]
[1723640775945,0.25098,150.35,150.19,7.50207976]
[1723640776265,0.12549,150.34,150.21,50.87]
[1723640776444,0.12549,150.34,150.19,6.1713]
[1723640776445,0.25098,150.34,150.19,6.1713]
[1723640776652,6.6525,150.32,150.19,6.1713]
[1723640777048,57.64759,150.33,150.19,6.1713]
[1723640777256,0.37647,150.32,150.19,6.1713]
[1723640777457,0.12549,150.31,150.19,6.1713]
[1723640778564,57.3049,150.36,150.2,1.33111624]
[1723640778774,271.79782043,150.41,150.27,0.12549]
[1723640778939,271.79782043,150.41,150.3,0.12549]
[1723640778940,12.89782043,150.41,150.3,0.12549]
[1723640779265,6.89682043,150.41,150.33,0.12549]
[1723640779591,258.9,150.47,150.33,20.37647]
[1723640779771,6.648,150.43,150.34,45.0]
[1723640780080,6.6472,150.44,150.34,45.0]
[1723640780286,6.6485,150.41,150.33,20.0]
[1723640780457,57.76628218,150.45,150.31,0.12549]
[1723640780790,57.76628218,150.45,150.3,20.37647]
[1723640780791,50.87,150.37,150.22,50.87]
[1723640780954,50.87,150.37,150.23,20.0]
[1723640781159,15.52537,150.36,150.21,6.2071]
[1723640781467,6.6526,150.32,150.21,6.2071]
[1723640781775,0.12549,150.31,150.18,50.87]
[1723640781951,0.37647,150.33,150.18,50.87]
[1723640782152,0.12549,150.32,150.18,50.87]
[1723640782364,0.12549,150.31,150.18,50.87]
[1723640782548,6.77859,150.31,150.16,26.2071]
[1723640782766,50.99549,150.31,150.16,26.2071]
[1723640782967,6.6534,150.3,150.16,6.2071]
[1723640783279,50.87,150.28,150.16,6.2071]
[1723640783485,6.6534,150.3,150.14,2.18296762]
[1723640783486,0.12549,150.3,150.14,2.18296762]
[1723640783777,0.12549,150.29,150.14,0.8516359]
[1723640783957,0.12549,150.3,150.14,51.7216359]
[1723640784279,50.87,150.34,150.2,50.87]
[1723640784482,60.1489,150.36,150.21,1.33078286]
[1723640784679,15.1489,150.36,150.21,1.33078286]
[1723640784855,50.87,150.34,150.22,0.12549]
[1723640785055,50.87,150.34,150.19,0.12549]
[1723640785292,6.652,150.33,150.19,45.37647]
[1723640785459,6.652,150.33,150.2,20.0]
[1723640785661,0.12549,150.32,150.21,45.0]
[1723640785861,0.50196,150.32,150.22,20.0]
[1723640786060,50.87,150.34,150.23,45.25098]
[1723640786265,50.87,150.34,150.24,20.0]
[1723640786463,50.87,150.34,150.25,45.0]
[1723640786667,15.1489,150.36,150.26,21.4563155]
[1723640786888,15.1489,150.36,150.28,0.12549]
[1723640787400,381.7,150.38,150.28,20.50196]
[1723640787615,6.0965,150.42,150.28,20.50196]
[1723640787908,50.87,150.4,150.29,45.0]
[1723640788106,6.0965,150.42,150.28,20.0]
[1723640788107,50.87,150.37,150.28,20.0]
[1723640788486,57.5206,150.37,150.28,20.0]
[1723640788688,50.87,150.34,150.23,20.0]
[1723640788896,50.87,150.34,150.24,45.25098]